[Event "Live Chess"]
[Site "Chess.com"]
[Date "2023.09.16"]
[Round "-"]
[White "isanamie12"]
[Black "Sabadin21"]
[Result "1-0"]
[WhiteElo "799"]
[BlackElo "890"]
[TimeControl "900+5"]
[EndTime "6:08:42 PDT"]
[Termination "isanamie12 venceu por desistência"]

1. d4 {[%clk 0:15:01.3]} 1... f5 {[%clk 0:15:01.9]} 2. c4 {[%clk 0:15:04.6]}
2... Nc6 {[%clk 0:15:04.4]} 3. Nf3 {[%clk 0:15:05.7]} 3... Nf6 {[%clk
0:15:04.3]} 4. Bg5 {[%clk 0:15:05.4]} 4... Ne4 {[%clk 0:14:57]} 5. e3 {[%clk
0:15:00.4]} 5... d5 {[%clk 0:14:37.5]} 6. cxd5 {[%clk 0:14:54.2]} 6... Qxd5
{[%clk 0:14:40.8]} 7. Nc3 {[%clk 0:14:48.7]} 7... Nxc3 {[%clk 0:14:41.7]} 8.
bxc3 {[%clk 0:14:52.2]} 8... e6 {[%clk 0:14:32.3]} 9. c4 {[%clk 0:14:46]} 9...
Qd7 {[%clk 0:14:20.7]} 10. Be2 {[%clk 0:14:46.1]} 10... Be7 {[%clk 0:14:22.9]}
11. Bf4 {[%clk 0:14:37.5]} 11... O-O {[%clk 0:14:22.4]} 12. O-O {[%clk
0:14:33.6]} 12... Bd6 {[%clk 0:14:23.8]} 13. Bxd6 {[%clk 0:14:14.3]} 13... Qxd6
{[%clk 0:14:28]} 14. c5 {[%clk 0:14:08]} 14... Qe7 {[%clk 0:14:25.7]} 15. Bc4
{[%clk 0:14:05.5]} 15... Bd7 {[%clk 0:14:17.6]} 16. Re1 {[%clk 0:14:01]} 16...
Qe8 {[%clk 0:13:54.2]} 17. Ne5 {[%clk 0:14:01.4]} 17... Nxe5 {[%clk 0:13:55.6]}
18. dxe5 {[%clk 0:14:04.6]} 18... Qh5 {[%clk 0:13:47.5]} 19. Qxh5 {[%clk
0:13:58.8]} 1-0

[Event "Live Chess"]
[Site "Chess.com"]
[Date "2023.09.16"]
[Round "-"]
[White "PedroRossi14"]
[Black "Mariafernanda2805"]
[Result "0-1"]
[WhiteElo "495"]
[BlackElo "990"]
[TimeControl "900+5"]
[EndTime "6:10:01 PDT"]
[Termination "Mariafernanda2805 venceu por xeque-mate"]

1. e4 {[%clk 0:14:50.5]} 1... c5 {[%clk 0:15:01.8]} 2. Nf3 {[%clk 0:14:52.3]}
2... d6 {[%clk 0:15:03.9]} 3. d4 {[%clk 0:14:54.5]} 3... cxd4 {[%clk 0:15:05.8]}
4. Nxd4 {[%clk 0:14:56.9]} 4... Nf6 {[%clk 0:15:07.8]} 5. Nc3 {[%clk 0:14:58.9]}
5... a6 {[%clk 0:15:09.3]} 6. Be2 {[%clk 0:14:43.8]} 6... g6 {[%clk 0:15:09.7]}
7. O-O {[%clk 0:14:46.4]} 7... Bg7 {[%clk 0:15:11.6]} 8. Bf4 {[%clk 0:14:38.7]}
8... O-O {[%clk 0:15:13.1]} 9. Bg5 {[%clk 0:14:27.5]} 9... Nc6 {[%clk
0:15:08.3]} 10. Nxc6 {[%clk 0:14:27.8]} 10... bxc6 {[%clk 0:15:10.3]} 11. Qd2
{[%clk 0:14:12.4]} 11... d5 {[%clk 0:14:58.7]} 12. Rad1 {[%clk 0:13:58.1]} 12...
Be6 {[%clk 0:14:52.9]} 13. Bf3 {[%clk 0:13:56.7]} 13... Qd7 {[%clk 0:14:28.9]}
14. exd5 {[%clk 0:13:35.2]} 14... Nxd5 {[%clk 0:14:24.5]} 15. Nxd5 {[%clk
0:13:38.2]} 15... Bxd5 {[%clk 0:14:27.3]} 16. Bxd5 {[%clk 0:13:39.1]} 16... cxd5
{[%clk 0:14:29.8]} 17. Rfe1 {[%clk 0:13:36.2]} 17... f6 {[%clk 0:14:28.3]} 18.
Qxd5+ {[%clk 0:13:29.7]} 18... Qxd5 {[%clk 0:14:29.3]} 19. Rxd5 {[%clk
0:13:31.5]} 19... fxg5 {[%clk 0:14:30.3]} 20. Rxg5 {[%clk 0:13:34.2]} 20... Bxb2
{[%clk 0:14:32.4]} 21. Rxe7 {[%clk 0:13:36.3]} 21... Rad8 {[%clk 0:14:34]} 22.
h3 {[%clk 0:13:34.5]} 22... Bf6 {[%clk 0:14:34.7]} 23. Re6 {[%clk 0:13:22.1]}
23... Bxg5 {[%clk 0:14:36.8]} 24. Re5 {[%clk 0:13:24.1]} 24... Bf4 {[%clk
0:14:39.8]} 25. Ra5 {[%clk 0:13:25]} 25... Rd1# {[%clk 0:14:42.4]} 0-1

[Event "Live Chess"]
[Site "Chess.com"]
[Date "2023.09.16"]
[Round "-"]
[White "rakohibri"]
[Black "guilhermemazza"]
[Result "1-0"]
[WhiteElo "736"]
[BlackElo "558"]
[TimeControl "900+5"]
[EndTime "6:10:34 PDT"]
[Termination "rakohibri venceu por xeque-mate"]

1. d4 {[%clk 0:14:56.7]} 1... d5 {[%clk 0:15:03]} 2. c4 {[%clk 0:14:57.1]} 2...
Nf6 {[%clk 0:15:04.9]} 3. cxd5 {[%clk 0:14:57.7]} 3... Nxd5 {[%clk 0:15:08.2]}
4. e4 {[%clk 0:14:58.6]} 4... Nf4 {[%clk 0:15:10.6]} 5. Bxf4 {[%clk 0:14:58.3]}
5... e6 {[%clk 0:15:06.6]} 6. Nc3 {[%clk 0:14:52]} 6... c5 {[%clk 0:15:04]} 7.
Nf3 {[%clk 0:14:29.3]} 7... cxd4 {[%clk 0:15:06.3]} 8. Nxd4 {[%clk 0:14:29.7]}
8... Bb4 {[%clk 0:15:04.6]} 9. Bb5+ {[%clk 0:14:18.4]} 9... Bd7 {[%clk
0:15:04.5]} 10. Bc4 {[%clk 0:14:15.1]} 10... Bxc3+ {[%clk 0:15:06.5]} 11. bxc3
{[%clk 0:14:08.5]} 11... a5 {[%clk 0:15:08.6]} 12. Rb1 {[%clk 0:14:00.8]} 12...
Qc7 {[%clk 0:15:06.4]} 13. Bxc7 {[%clk 0:13:56.8]} 13... Nc6 {[%clk 0:15:05.2]}
14. Nxc6 {[%clk 0:13:43.8]} 14... Bxc6 {[%clk 0:15:09]} 15. e5 {[%clk
0:13:08.9]} 15... Be4 {[%clk 0:15:08.8]} 16. Rb5 {[%clk 0:12:15.9]} 16... a4
{[%clk 0:15:10.5]} 17. O-O {[%clk 0:12:13.2]} 17... O-O {[%clk 0:15:12.4]} 18.
Bd6 {[%clk 0:11:46.6]} 18... a3 {[%clk 0:15:08.5]} 19. Bd3 {[%clk 0:11:29.3]}
19... Bxd3 {[%clk 0:15:09.4]} 20. Qxd3 {[%clk 0:11:29.8]} 20... Ra6 {[%clk
0:15:05.3]} 21. Bxf8 {[%clk 0:11:26.5]} 21... Kxf8 {[%clk 0:15:08.9]} 22. Rxb7
{[%clk 0:11:21.7]} 22... f5 {[%clk 0:15:07.2]} 23. Qd8# {[%clk 0:11:22.9]} 1-0

[Event "Live Chess"]
[Site "Chess.com"]
[Date "2023.09.16"]
[Round "-"]
[White "Ruanfelipe2014"]
[Black "SaladaChess"]
[Result "0-1"]
[WhiteElo "978"]
[BlackElo "1076"]
[TimeControl "900+5"]
[EndTime "6:10:42 PDT"]
[Termination "SaladaChess venceu por xeque-mate"]

1. e4 {[%clk 0:14:58.9]} 1... c6 {[%clk 0:15:03.6]} 2. Bc4 {[%clk 0:15:00.3]}
2... d5 {[%clk 0:15:07.1]} 3. exd5 {[%clk 0:15:01.9]} 3... cxd5 {[%clk
0:15:10.5]} 4. Bb3 {[%clk 0:15:04.5]} 4... Nf6 {[%clk 0:15:08.6]} 5. d4 {[%clk
0:15:05]} 5... Bf5 {[%clk 0:15:07.1]} 6. Nc3 {[%clk 0:14:57.3]} 6... e6 {[%clk
0:15:09.9]} 7. Bg5 {[%clk 0:14:56.7]} 7... Bb4 {[%clk 0:15:08.1]} 8. a3 {[%clk
0:14:52.7]} 8... Ba5 {[%clk 0:15:09.8]} 9. Nf3 {[%clk 0:14:42]} 9... Nc6 {[%clk
0:15:12.8]} 10. Qe2 {[%clk 0:14:15.8]} 10... h6 {[%clk 0:14:55.6]} 11. Bh4
{[%clk 0:14:15.5]} 11... Bxc3+ {[%clk 0:14:54.1]} 12. bxc3 {[%clk 0:14:12.6]}
12... O-O {[%clk 0:14:45.7]} 13. Ne5 {[%clk 0:14:06]} 13... Qa5 {[%clk
0:13:27.4]} 14. Bxf6 {[%clk 0:13:58.6]} 14... Qxc3+ {[%clk 0:13:20.6]} 15. Qd2
{[%clk 0:13:42]} 15... Qxa1+ {[%clk 0:13:16.4]} 16. Ke2 {[%clk 0:13:38.1]} 16...
Qxh1 {[%clk 0:13:09.6]} 17. Nd7 {[%clk 0:13:27.8]} 17... Bg4+ {[%clk 0:12:49.2]}
18. Ke3 {[%clk 0:13:23.2]} 18... Qxg2 {[%clk 0:12:23.3]} 19. Nxf8 {[%clk
0:13:19.9]} 19... Qf3# {[%clk 0:12:26.3]} 0-1

[Event "Live Chess"]
[Site "Chess.com"]
[Date "2023.09.16"]
[Round "-"]
[White "PedroRossi14"]
[Black "guilhermemazza"]
[Result "1-0"]
[WhiteElo "504"]
[BlackElo "462"]
[TimeControl "900+5"]
[EndTime "6:13:34 PDT"]
[Termination "PedroRossi14 venceu por xeque-mate"]

1. e4 {[%clk 0:15:03.3]} 1... e5 {[%clk 0:15:03.9]} 2. Nf3 {[%clk 0:15:06.8]}
2... Nc6 {[%clk 0:15:05.6]} 3. d4 {[%clk 0:15:09.5]} 3... d6 {[%clk 0:15:06.9]}
4. d5 {[%clk 0:15:12]} 4... Nd4 {[%clk 0:15:07.6]} 5. Nbd2 {[%clk 0:15:08.3]}
5... Nxf3+ {[%clk 0:15:10.3]} 6. Nxf3 {[%clk 0:15:11.7]} 6... Nf6 {[%clk
0:15:07.9]} 7. Bd3 {[%clk 0:15:06.5]} 7... c6 {[%clk 0:15:09.9]} 8. dxc6 {[%clk
0:15:00.4]} 8... bxc6 {[%clk 0:15:13.4]} 9. O-O {[%clk 0:15:02.3]} 9... Bg4
{[%clk 0:15:08.3]} 10. Bg5 {[%clk 0:14:58.8]} 10... Bxf3 {[%clk 0:15:10.3]} 11.
Qxf3 {[%clk 0:15:00.8]} 11... Nxe4 {[%clk 0:15:11.9]} 12. Qe3 {[%clk 0:14:51.6]}
12... Nxg5 {[%clk 0:15:10.7]} 13. Rfd1 {[%clk 0:14:49]} 13... d5 {[%clk
0:15:05.8]} 14. Qxe5+ {[%clk 0:14:46.6]} 14... Be7 {[%clk 0:15:09.3]} 15. Re1
{[%clk 0:14:45.2]} 15... Rb8 {[%clk 0:15:09.3]} 16. Re2 {[%clk 0:14:48.4]} 16...
Rxb2 {[%clk 0:15:12.3]} 17. Rae1 {[%clk 0:14:51.3]} 17... Qb8 {[%clk 0:15:13.7]}
18. Qxe7# {[%clk 0:14:53]} 1-0

[Event "Live Chess"]
[Site "Chess.com"]
[Date "2023.09.16"]
[Round "-"]
[White "lanofimdojogo"]
[Black "Sabadin21"]
[Result "0-1"]
[WhiteElo "367"]
[BlackElo "892"]
[TimeControl "900+5"]
[EndTime "6:16:37 PDT"]
[Termination "Sabadin21 venceu por xeque-mate"]

1. e4 {[%clk 0:15:00.9]} 1... e5 {[%clk 0:15:04.2]} 2. Bc4 {[%clk 0:15:01]} 2...
Bc5 {[%clk 0:15:08]} 3. Qf3 {[%clk 0:15:03.5]} 3... f6 {[%clk 0:15:00.5]} 4. Nh3
{[%clk 0:15:00.7]} 4... Nc6 {[%clk 0:15:01.6]} 5. O-O {[%clk 0:15:01.1]} 5...
Nb4 {[%clk 0:15:01.5]} 6. Re1 {[%clk 0:14:50.4]} 6... Nxc2 {[%clk 0:15:04.1]} 7.
a4 {[%clk 0:14:42.8]} 7... Nxa1 {[%clk 0:15:06.2]} 8. Re3 {[%clk 0:14:41.5]}
8... Bxe3 {[%clk 0:15:06.3]} 9. Qxe3 {[%clk 0:14:44.8]} 9... Nc2 {[%clk
0:15:10.7]} 10. Qd3 {[%clk 0:14:45.3]} 10... Nd4 {[%clk 0:15:09.4]} 11. Qa3
{[%clk 0:14:37.5]} 11... Qe7 {[%clk 0:15:09.3]} 12. Qxe7+ {[%clk 0:14:38.2]}
12... Nxe7 {[%clk 0:15:13.5]} 13. Bd5 {[%clk 0:14:36.7]} 13... Kd8 {[%clk
0:15:16.2]} 14. Ba2 {[%clk 0:14:32.4]} 14... d6 {[%clk 0:15:07.5]} 15. d3 {[%clk
0:14:17.5]} 15... Ne2+ {[%clk 0:15:08.7]} 16. Kf1 {[%clk 0:14:14]} 16... Nxc1
{[%clk 0:15:11.7]} 17. Bf7 {[%clk 0:14:04.6]} 17... Bxh3 {[%clk 0:15:13.2]} 18.
gxh3 {[%clk 0:14:07.5]} 18... Rf8 {[%clk 0:15:11.9]} 19. Bh5 {[%clk 0:14:06.2]}
19... g6 {[%clk 0:15:15]} 20. Bd1 {[%clk 0:14:04]} 20... Nc6 {[%clk 0:15:18.5]}
21. Na3 {[%clk 0:14:02.2]} 21... Nxd3 {[%clk 0:15:20.9]} 22. Be2 {[%clk
0:13:53.4]} 22... Nc5 {[%clk 0:15:24.2]} 23. Nc4 {[%clk 0:13:39.7]} 23... Nxe4
{[%clk 0:15:25.1]} 24. Nd2 {[%clk 0:13:35]} 24... Nxd2+ {[%clk 0:15:27.2]} 25.
Kg2 {[%clk 0:13:35.9]} 25... f5 {[%clk 0:15:25.5]} 26. h4 {[%clk 0:13:28.1]}
26... Nd4 {[%clk 0:15:29.2]} 27. Kh1 {[%clk 0:13:28.2]} 27... Nxe2 {[%clk
0:15:09]} 28. b4 {[%clk 0:13:26.2]} 28... Nf3 {[%clk 0:15:12.8]} 29. Kg2 {[%clk
0:13:26.7]} 29... Nd2 {[%clk 0:15:14.8]} 30. a5 {[%clk 0:13:26.4]} 30... c5
{[%clk 0:15:19.1]} 31. b5 {[%clk 0:13:27.4]} 31... c4 {[%clk 0:15:21.9]} 32. Kh1
{[%clk 0:13:26.7]} 32... c3 {[%clk 0:15:26.1]} 33. Kg2 {[%clk 0:13:28.1]} 33...
c2 {[%clk 0:15:30.4]} 34. Kh3 {[%clk 0:13:31.3]} 34... c1=Q {[%clk 0:15:34.6]}
35. Kg2 {[%clk 0:13:11.3]} 35... Qf1# {[%clk 0:15:38.9]} 0-1

[Event "Live Chess"]
[Site "Chess.com"]
[Date "2023.09.16"]
[Round "-"]
[White "asafefausto"]
[Black "Mariafernanda2805"]
[Result "0-1"]
[WhiteElo "887"]
[BlackElo "1001"]
[TimeControl "900+5"]
[EndTime "6:22:33 PDT"]
[Termination "Mariafernanda2805 venceu por xeque-mate"]

1. d4 {[%clk 0:15:01.1]} 1... e6 {[%clk 0:15:00.6]} 2. e4 {[%clk 0:15:02.1]}
2... d6 {[%clk 0:15:00.8]} 3. Bb5+ {[%clk 0:14:56.3]} 3... Nc6 {[%clk
0:15:02.1]} 4. Bxc6+ {[%clk 0:14:55.1]} 4... bxc6 {[%clk 0:15:03.9]} 5. Nf3
{[%clk 0:14:53.3]} 5... Ba6 {[%clk 0:15:06.1]} 6. Bf4 {[%clk 0:14:51.5]} 6...
Nf6 {[%clk 0:15:06.5]} 7. Nc3 {[%clk 0:14:47.8]} 7... Be7 {[%clk 0:15:06.6]} 8.
Qd2 {[%clk 0:14:48.1]} 8... O-O {[%clk 0:14:59.9]} 9. O-O-O {[%clk 0:14:50.3]}
9... d5 {[%clk 0:14:58.9]} 10. e5 {[%clk 0:14:41.8]} 10... Ne4 {[%clk
0:14:56.1]} 11. Nxe4 {[%clk 0:14:37.9]} 11... dxe4 {[%clk 0:14:59]} 12. Rhe1
{[%clk 0:14:28.1]} 12... exf3 {[%clk 0:15:01.4]} 13. gxf3 {[%clk 0:14:20]} 13...
Rb8 {[%clk 0:14:55.6]} 14. Be3 {[%clk 0:14:02.7]} 14... Bb4 {[%clk 0:14:53.6]}
15. c3 {[%clk 0:13:52.2]} 15... Be7 {[%clk 0:14:53.6]} 16. f4 {[%clk 0:13:40.2]}
16... h6 {[%clk 0:14:51.3]} 17. f5 {[%clk 0:13:15]} 17... exf5 {[%clk
0:14:50.7]} 18. d5 {[%clk 0:13:15.2]} 18... c5 {[%clk 0:14:41.2]} 19. d6 {[%clk
0:13:14.2]} 19... cxd6 {[%clk 0:14:43.2]} 20. exd6 {[%clk 0:13:15.7]} 20... Bxd6
{[%clk 0:14:45]} 21. Qxd6 {[%clk 0:13:17.8]} 21... Qxd6 {[%clk 0:14:47.1]} 22.
Rxd6 {[%clk 0:13:20.4]} 22... Bb5 {[%clk 0:14:39.2]} 23. Bxh6 {[%clk 0:13:20.1]}
23... gxh6 {[%clk 0:14:38.2]} 24. Rg1+ {[%clk 0:13:21.3]} 24... Kh7 {[%clk
0:14:39.2]} 25. f4 {[%clk 0:13:06]} 25... Rbd8 {[%clk 0:14:07.9]} 26. Rf6 {[%clk
0:13:00.5]} 26... Bd3 {[%clk 0:13:56.6]} 27. Rxf5 {[%clk 0:12:47.5]} 27... Bxf5
{[%clk 0:13:59.5]} 28. h4 {[%clk 0:12:34.9]} 28... Rg8 {[%clk 0:13:59.8]} 29.
Rf1 {[%clk 0:12:31.7]} 29... Bd3 {[%clk 0:13:56]} 30. Re1 {[%clk 0:12:26.5]}
30... f5 {[%clk 0:13:47.9]} 31. b4 {[%clk 0:12:21]} 31... cxb4 {[%clk
0:13:48.8]} 32. cxb4 {[%clk 0:12:23.9]} 32... Rc8+ {[%clk 0:13:51.1]} 33. Kd2
{[%clk 0:12:22]} 33... Rgd8 {[%clk 0:13:49.9]} 34. Re7+ {[%clk 0:12:04.2]} 34...
Kg6 {[%clk 0:13:50.9]} 35. Rxa7 {[%clk 0:12:00]} 35... Bb5+ {[%clk 0:13:52.4]}
36. Ke3 {[%clk 0:11:29.7]} 36... Rc3+ {[%clk 0:13:52.8]} 37. Kf2 {[%clk
0:11:23.5]} 37... Re8 {[%clk 0:13:48.6]} 38. a4 {[%clk 0:11:09.2]} 38... Re2+
{[%clk 0:13:47.8]} 39. Kf1 {[%clk 0:11:02.5]} 39... Rc1# {[%clk 0:13:51]} 0-1

[Event "Live Chess"]
[Site "Chess.com"]
[Date "2023.09.16"]
[Round "-"]
[White "Sabadin21"]
[Black "PedroRossi14"]
[Result "1-0"]
[WhiteElo "894"]
[BlackElo "512"]
[TimeControl "900+5"]
[EndTime "6:23:52 PDT"]
[Termination "Sabadin21 venceu por desistência"]

1. e4 {[%clk 0:15:02.5]} 1... c6 {[%clk 0:15:02.6]} 2. d4 {[%clk 0:15:05]} 2...
d5 {[%clk 0:15:05.8]} 3. f3 {[%clk 0:15:06.9]} 3... Nd7 {[%clk 0:15:06.4]} 4.
Nc3 {[%clk 0:15:09.3]} 4... e6 {[%clk 0:15:03.7]} 5. Bd3 {[%clk 0:15:13.2]} 5...
Be7 {[%clk 0:15:01.4]} 6. Nge2 {[%clk 0:15:16.9]} 6... Ngf6 {[%clk 0:15:00.1]}
7. O-O {[%clk 0:15:19.5]} 7... O-O {[%clk 0:15:03.1]} 8. Be3 {[%clk 0:15:23.9]}
8... c5 {[%clk 0:15:01.2]} 9. Qc1 {[%clk 0:15:27.3]} 9... cxd4 {[%clk
0:15:04.4]} 10. Bxd4 {[%clk 0:15:30.6]} 10... Nc5 {[%clk 0:14:50.6]} 11. Bxc5
{[%clk 0:15:32.5]} 11... Bxc5+ {[%clk 0:14:54]} 12. Kh1 {[%clk 0:15:31.8]} 12...
d4 {[%clk 0:14:54.5]} 13. Nd1 {[%clk 0:15:19.7]} 13... Nh5 {[%clk 0:14:43]} 14.
Nf2 {[%clk 0:15:20.2]} 14... Qh4 {[%clk 0:14:41.2]} 15. g3 {[%clk 0:15:06.4]}
15... Nxg3+ {[%clk 0:14:44.2]} 16. Nxg3 {[%clk 0:15:07.9]} 16... Bd6 {[%clk
0:14:40.3]} 17. Rg1 {[%clk 0:15:09.6]} 17... Bd7 {[%clk 0:14:38]} 18. Rg2 {[%clk
0:14:59]} 18... Be5 {[%clk 0:14:38.2]} 19. Ng4 {[%clk 0:14:55.2]} 19... Bd6
{[%clk 0:14:33.8]} 20. e5 {[%clk 0:14:34.3]} 20... Bc5 {[%clk 0:14:32.7]} 21.
Ne2 {[%clk 0:14:24.7]} 21... Rac8 {[%clk 0:14:31.7]} 22. Qe1 {[%clk 0:14:27.4]}
22... Bb6 {[%clk 0:14:31.2]} 23. Qxh4 {[%clk 0:14:28.8]} 23... Rc7 {[%clk
0:14:19.7]} 24. Nf4 {[%clk 0:14:30.8]} 24... Rfc8 {[%clk 0:14:22.9]} 25. Qg5
{[%clk 0:14:29.4]} 25... h6 {[%clk 0:14:23.9]} 26. Qe7 {[%clk 0:14:02.6]} 26...
Re8 {[%clk 0:14:19.3]} 27. Qh4 {[%clk 0:13:36.5]} 27... g5 {[%clk 0:14:15]} 28.
Qxh6 {[%clk 0:13:32.4]} 1-0

[Event "Live Chess"]
[Site "Chess.com"]
[Date "2023.09.16"]
[Round "-"]
[White "lgomessc"]
[Black "pedromiguelchess"]
[Result "1-0"]
[WhiteElo "1164"]
[BlackElo "1087"]
[TimeControl "900+5"]
[EndTime "6:25:28 PDT"]
[Termination "lgomessc venceu por xeque-mate"]

1. e4 {[%clk 0:15:02.5]} 1... e5 {[%clk 0:14:59.5]} 2. Nf3 {[%clk 0:15:05.1]}
2... Nc6 {[%clk 0:15:00.8]} 3. Bc4 {[%clk 0:15:07.7]} 3... Bc5 {[%clk
0:15:03.3]} 4. Nc3 {[%clk 0:15:09.9]} 4... Nf6 {[%clk 0:15:04.5]} 5. d3 {[%clk
0:15:09.2]} 5... O-O {[%clk 0:14:33.3]} 6. Bg5 {[%clk 0:15:09.6]} 6... h6 {[%clk
0:13:56.7]} 7. Bh4 {[%clk 0:15:07]} 7... d6 {[%clk 0:13:15.5]} 8. Nd5 {[%clk
0:15:04.3]} 8... Be6 {[%clk 0:12:10.3]} 9. Nxf6+ {[%clk 0:15:01.4]} 9... gxf6
{[%clk 0:12:08.6]} 10. Bxe6 {[%clk 0:15:04]} 10... fxe6 {[%clk 0:12:12.4]} 11.
Nd2 {[%clk 0:15:03.6]} 11... Rf7 {[%clk 0:11:22.3]} 12. Qg4+ {[%clk 0:14:55]}
12... Rg7 {[%clk 0:11:16.5]} 13. Qxe6+ {[%clk 0:14:55.2]} 13... Kf8 {[%clk
0:11:00.9]} 14. Bxf6 {[%clk 0:14:52.3]} 14... Qd7 {[%clk 0:10:06.1]} 15. Bxg7+
{[%clk 0:14:51.9]} 15... Qxg7 {[%clk 0:10:07.6]} 16. Qf5+ {[%clk 0:14:44.8]}
16... Qf7 {[%clk 0:10:00.6]} 17. Qxf7+ {[%clk 0:14:47.2]} 17... Kxf7 {[%clk
0:10:03.4]} 18. Nf3 {[%clk 0:14:14.9]} 18... Rg8 {[%clk 0:09:54.8]} 19. O-O
{[%clk 0:14:00.1]} 19... Nd4 {[%clk 0:09:47.4]} 20. Nxd4 {[%clk 0:13:59.6]}
20... Bxd4 {[%clk 0:09:37.9]} 21. c3 {[%clk 0:14:01.9]} 21... Bb6 {[%clk
0:09:38]} 22. a4 {[%clk 0:14:00.5]} 22... c6 {[%clk 0:09:38.8]} 23. a5 {[%clk
0:14:01.9]} 23... Bd8 {[%clk 0:09:39.7]} 24. d4 {[%clk 0:14:04.6]} 24... exd4
{[%clk 0:09:42.4]} 25. cxd4 {[%clk 0:14:08.5]} 25... Bf6 {[%clk 0:09:41.4]} 26.
Ra4 {[%clk 0:13:51.1]} 26... Re8 {[%clk 0:09:31.2]} 27. f3 {[%clk 0:13:43.7]}
27... c5 {[%clk 0:09:27]} 28. dxc5 {[%clk 0:13:45.7]} 28... dxc5 {[%clk
0:09:29.7]} 29. Rc4 {[%clk 0:13:44.4]} 29... Bd4+ {[%clk 0:09:30.5]} 30. Kh1
{[%clk 0:13:44.2]} 30... b5 {[%clk 0:09:27.3]} 31. axb6 {[%clk 0:13:42.5]} 31...
axb6 {[%clk 0:09:29.2]} 32. Ra4 {[%clk 0:13:41.4]} 32... Bxb2 {[%clk 0:09:20.1]}
33. Ra7+ {[%clk 0:13:41.7]} 33... Ke6 {[%clk 0:09:19.9]} 34. Rb1 {[%clk
0:13:40]} 34... Rd8 {[%clk 0:09:07.4]} 35. h4 {[%clk 0:13:31]} 35... Be5 {[%clk
0:09:01.5]} 36. Rxb6+ {[%clk 0:13:28.7]} 36... Bd6 {[%clk 0:08:58.8]} 37. Rh7
{[%clk 0:13:08.5]} 37... c4 {[%clk 0:08:51.6]} 38. Rxh6+ {[%clk 0:13:11.1]}
38... Ke7 {[%clk 0:08:52.2]} 39. Rb7+ {[%clk 0:13:11.2]} 39... Ke8 {[%clk
0:08:51.1]} 40. Re6+ {[%clk 0:12:21.9]} 40... Kf8 {[%clk 0:08:46]} 41. Rb1
{[%clk 0:11:55.6]} 41... Bg3 {[%clk 0:07:58.6]} 42. h5 {[%clk 0:11:25.6]} 42...
c3 {[%clk 0:07:57]} 43. Rc6 {[%clk 0:11:23.1]} 43... Be5 {[%clk 0:07:11.8]} 44.
g4 {[%clk 0:11:07.7]} 44... Rd7 {[%clk 0:06:44.6]} 45. Kg2 {[%clk 0:11:00.5]}
45... Rg7 {[%clk 0:06:25.2]} 46. h6 {[%clk 0:10:51.6]} 46... Rg5 {[%clk
0:06:16.8]} 47. h7 {[%clk 0:10:47]} 47... Kg7 {[%clk 0:06:04.3]} 48. Rb7+ {[%clk
0:10:42.8]} 48... Bc7 {[%clk 0:05:39]} 49. Rcxc7+ {[%clk 0:10:39.2]} 49... Kh8
{[%clk 0:05:43.9]} 50. Rb8+ {[%clk 0:10:40.8]} 50... Rg8 {[%clk 0:05:44.5]} 51.
Rxg8# {[%clk 0:10:42.6]} 1-0

[Event "Live Chess"]
[Site "Chess.com"]
[Date "2023.09.16"]
[Round "-"]
[White "Rafael-2021"]
[Black "Ruanfelipe2014"]
[Result "1/2-1/2"]
[WhiteElo "928"]
[BlackElo "976"]
[TimeControl "900+5"]
[EndTime "6:26:01 PDT"]
[Termination "Empate por repetição"]

1. g3 {[%clk 0:14:49.7]} 1... e5 {[%clk 0:15:01.1]} 2. Bg2 {[%clk 0:14:52.7]}
2... Bc5 {[%clk 0:14:58]} 3. Nf3 {[%clk 0:14:55.5]} 3... d6 {[%clk 0:14:56.9]}
4. O-O {[%clk 0:14:58.7]} 4... Bg4 {[%clk 0:14:48.8]} 5. d3 {[%clk 0:14:58]}
5... Nf6 {[%clk 0:14:35.7]} 6. e4 {[%clk 0:14:59.4]} 6... Nc6 {[%clk 0:14:27.3]}
7. Nc3 {[%clk 0:15:02.8]} 7... Nd4 {[%clk 0:14:28]} 8. h3 {[%clk 0:15:00.8]}
8... Nxf3+ {[%clk 0:14:20.9]} 9. Bxf3 {[%clk 0:15:02.2]} 9... Bxh3 {[%clk
0:14:21.6]} 10. Bg2 {[%clk 0:15:05.5]} 10... Bg4 {[%clk 0:14:18.3]} 11. Qd2
{[%clk 0:15:03.3]} 11... Qd7 {[%clk 0:13:43.4]} 12. b3 {[%clk 0:15:06.2]} 12...
Bd4 {[%clk 0:13:35.2]} 13. Bb2 {[%clk 0:15:09.4]} 13... Bh3 {[%clk 0:13:21.3]}
14. Rfe1 {[%clk 0:15:03.4]} 14... Bxg2 {[%clk 0:13:12.9]} 15. Kxg2 {[%clk
0:15:06.2]} 15... h5 {[%clk 0:12:57.3]} 16. Qg5 {[%clk 0:15:03]} 16... Rg8
{[%clk 0:12:36.5]} 17. Qd2 {[%clk 0:14:55.6]} 17... Rh8 {[%clk 0:12:29.7]} 18.
Nd1 {[%clk 0:14:46.9]} 18... h4 {[%clk 0:12:26.3]} 19. Rh1 {[%clk 0:14:44.5]}
19... Qg4 {[%clk 0:12:09.2]} 20. Bxd4 {[%clk 0:14:37.8]} 20... exd4 {[%clk
0:12:07.2]} 21. Nb2 {[%clk 0:14:27.1]} 21... O-O-O {[%clk 0:11:59.2]} 22. Qf4
{[%clk 0:14:29.9]} 22... Qg6 {[%clk 0:11:44.9]} 23. Rxh4 {[%clk 0:14:23.7]}
23... d5 {[%clk 0:11:36.4]} 24. e5 {[%clk 0:14:17]} 24... Nh5 {[%clk 0:11:14.2]}
25. Qg4+ {[%clk 0:14:15]} 25... Qxg4 {[%clk 0:11:10.9]} 26. Rxg4 {[%clk
0:14:18.5]} 26... g6 {[%clk 0:11:07]} 27. Rh1 {[%clk 0:14:05.4]} 27... Rde8
{[%clk 0:10:33.8]} 28. Rxd4 {[%clk 0:14:01.5]} 28... Rxe5 {[%clk 0:10:27.1]} 29.
c4 {[%clk 0:13:48.8]} 29... dxc4 {[%clk 0:10:17.8]} 30. Nxc4 {[%clk 0:13:51.8]}
30... Re2 {[%clk 0:10:16.1]} 31. Re4 {[%clk 0:13:50.7]} 31... Rxa2 {[%clk
0:10:11.8]} 32. Re7 {[%clk 0:13:47.7]} 32... Ra6 {[%clk 0:09:49]} 33. Rxf7
{[%clk 0:13:45.5]} 33... b6 {[%clk 0:09:35.9]} 34. Rh4 {[%clk 0:13:40.5]} 34...
b5 {[%clk 0:09:18.2]} 35. Nd2 {[%clk 0:13:37.6]} 35... g5 {[%clk 0:09:13.2]} 36.
Rh1 {[%clk 0:13:31.4]} 36... Rg6 {[%clk 0:09:01.8]} 37. g4 {[%clk 0:13:30]}
37... Nf4+ {[%clk 0:09:01.9]} 38. Kg1 {[%clk 0:13:32.5]} 38... Ne2+ {[%clk
0:08:50.1]} 39. Kg2 {[%clk 0:13:35.9]} 39... Nf4+ {[%clk 0:08:47.6]} 40. Kg1
{[%clk 0:13:37.9]} 40... Ne2+ {[%clk 0:08:41.9]} 41. Kg2 {[%clk 0:13:41.5]}
41... Nf4+ {[%clk 0:08:44.2]} 1/2-1/2